bitfinex-derivatives/quotes_ETHF0:USTF0_20240910
["timestamp","ask_amount","ask_price","bid_price","bid_amount"]
[1725933931567,0.42718,2340.6,2340.4,0.4272]
[1725933931761,0.79418,2340.6,2340.4,0.4272]
[1725933931955,0.4025,2340.5,2340.4,0.4272]
[1725933932263,0.82971,2340.5,2340.3,41.60622]
[1725933932465,0.8297,2340.5,2340.3,0.379]
[1725933932661,0.4025,2340.5,2340.4,0.42721]
[1725933933374,0.42714,2340.8,2340.6,0.42716]
[1725933933375,0.42715,2340.8,2340.6,0.42716]
[1725933933587,0.81325,2340.8,2340.6,0.42716]
[1725933933869,11.07938314,2340.7,2340.6,0.42716]
[1725933934074,10.65223314,2340.7,2340.6,0.42716]
[1725933934559,0.3861,2340.8,2340.6,0.42716]
[1725933934560,0.81324,2340.8,2340.6,0.42716]
[1725933935263,0.42716,2340.7,2340.5,0.42718]
[1725933936269,0.81325,2340.8,2340.6,0.42717]
[1725933937965,0.81325,2340.8,2340.7,0.42715]
[1725933938566,0.81325,2340.8,2340.6,0.42716]
[1725933940067,0.3861,2340.8,2340.6,0.42716]
[1725933940275,0.42715,2340.7,2340.6,0.42716]
[1725933940664,0.42723,2340.3,2340.2,0.42724]
[1725933940875,0.42722,2340.4,2340.3,0.42722]
[1725933941065,0.4272,2340.5,2340.3,0.42722]
[1725933941265,0.42721,2340.4,2340.3,0.42722]
[1725933942671,0.42723,2340.3,2340.2,0.42723]
[1725933943771,0.3857,2340.4,2340.1,1.18155]
[1725933943976,0.42724,2340.2,2340.1,0.7543]
[1725933944168,1.65723,2340.3,2340.1,0.7543]
[1725933944364,1.65723,2340.3,2340.1,1.18155]
[1725933944775,1.65724,2340.3,2340.1,1.18155]
[1725933945174,1.65724,2340.3,2340.2,0.42724]
[1725933945363,1.65724,2340.3,2340.1,0.7543]
[1725933945565,1.23,2340.3,2340.2,0.42724]
[1725933945765,0.81292,2340.4,2340.2,0.42724]
[1725933946182,0.42723,2340.3,2340.2,0.42724]
[1725933946473,0.42723,2340.3,2340.1,0.7543]
[1725933946677,0.81292,2340.4,2340.2,0.42723]
[1725933947379,0.42723,2340.3,2340.2,0.42723]
[1725933947570,0.81292,2340.4,2340.2,0.42723]
[1725933948174,0.42723,2340.3,2340.2,0.42723]
[1725933948367,0.81292,2340.4,2340.2,0.42723]
[1725933948775,0.42723,2340.3,2340.2,0.42723]
[1725933949270,0.81292,2340.4,2340.3,0.42723]
[1725933950284,0.42722,2340.4,2340.3,0.42723]
[1725933950978,0.42722,2340.4,2340.2,0.42723]
[1725933951490,0.42722,2340.4,2340.3,0.42723]
[1725933952890,2.0307,2340.5,2340.4,0.42721]
[1725933953088,1.6035,2340.5,2340.4,0.42721]
[1725933953285,1.65718,2340.6,2340.5,0.42719]
[1725933953485,0.42719,2340.5,2340.4,0.4272]
[1725933955491,0.4008,2340.7,2340.6,0.42717]
[1725933955682,0.42716,2340.7,2340.5,0.7544]
[1725933956187,0.42715,2340.8,2340.6,0.42716]
[1725933956485,11.01274092,2340.8,2340.6,0.42716]
[1725933956790,11.01274092,2340.8,2340.5,0.7544]
[1725933956791,11.01274092,2340.8,2340.7,0.42715]
[1725933957285,10.58559092,2340.8,2340.7,0.42715]
[1725933957684,10.58559092,2340.8,2340.6,0.42716]
[1725933957685,11.01274092,2340.8,2340.6,0.42716]
[1725933957991,11.01274092,2340.8,2340.7,0.42715]
[1725933958188,11.01274092,2340.8,2340.6,0.42716]
[1725933959183,0.42715,2340.7,2340.6,0.42716]
[1725933959691,11.01274092,2340.8,2340.7,0.42715]
[1725933959890,11.01274092,2340.8,2340.5,0.7544]
[1725933959891,11.01274092,2340.8,2340.6,0.42716]
[1725933960191,0.42715,2340.7,2340.6,0.42716]
[1725933960491,11.01273092,2340.8,2340.7,0.42715]
[1725933961185,11.01273092,2340.8,2340.5,0.7544]
[1725933961186,11.01273092,2340.8,2340.6,0.42716]
[1725933961390,11.01273092,2340.8,2340.6,0.42715]
[1725933961585,0.42715,2340.7,2340.6,0.42717]
[1725933961780,0.42715,2340.7,2340.5,1.86626551]
[1725933961781,11.01274092,2340.8,2340.7,0.42715]
[1725933961981,0.099,2341.1,2340.7,1.23]
[1725933962181,0.3777,2341.2,2341.0,1.23]
[1725933962387,0.42708,2341.1,2341.0,0.42709]
[1725933963094,0.3777,2341.2,2341.1,0.42708]
[1725933963284,1.23,2341.3,2341.2,0.42706]
[1725933963483,1.65705,2341.3,2341.2,0.42706]
[1725933963689,1.65705,2341.3,2341.1,0.42707]
[1725933963884,0.42706,2341.2,2341.1,0.42707]
[1725933964095,0.3777,2341.5,2341.3,0.42704]
[1725933964391,0.099,2341.8,2341.7,0.42697]
[1725933964694,0.25658418,2342.1,2341.7,0.42697]
[1725933964695,0.3979,2342.1,2341.8,0.42695]
[1725933964882,0.8248,2342.1,2341.9,0.3643]
[1725933965086,0.42692,2342.0,2341.9,0.3643]
[1725933965289,0.42695,2341.8,2341.7,40.8]
[1725933965495,0.3701,2341.9,2341.7,40.8]
[1725933965700,0.42695,2341.8,2341.7,40.8]
[1725933965997,0.79705,2341.9,2341.7,40.8]
[1725933966290,0.42699,2341.7,2341.4,0.3962]
[1725933966506,0.82489,2341.6,2341.4,0.3962]
[1725933966683,0.42701,2341.5,2341.3,0.3643]
[1725933966884,0.42703,2341.4,2341.1,45.2697]
[1725933967085,0.42703,2341.4,2341.1,41.1877]
[1725933967285,0.42705,2341.3,2341.1,40.8]
[1725933967481,0.42707,2341.2,2341.0,0.7549]
[1725933967687,0.81197,2341.2,2341.0,0.7549]
[1725933968099,0.42711,2341.0,2340.6,4.50916]
[1725933968309,0.3849,2340.9,2340.7,0.80814]
[1725933968699,0.3849,2340.9,2340.7,41.60814]
[1725933969899,0.3849,2340.9,2340.7,41.181]
[1725933970300,0.81202,2340.9,2340.7,0.381]
[1725933970496,0.3849,2340.9,2340.7,0.381]
[1725933970717,0.81203,2340.9,2340.7,40.8]
[1725933971404,0.81203,2340.9,2340.5,0.83118]
[1725933972298,0.3849,2340.9,2340.6,0.42717]
[1725933973113,0.3849,2340.9,2340.7,0.42715]
[1725933973302,2.67,2341.1,2340.5,0.404]
[1725933973303,0.42709,2341.1,2340.8,0.42713]
[1725933973611,0.42709,2341.1,2340.9,0.393]
[1725933973612,0.3932,2341.0,2340.9,0.393]
[1725933975105,0.3932,2341.0,2340.9,0.82012]
[1725933975509,0.3932,2341.0,2340.9,0.393]
[1725933976720,0.79417,2341.2,2340.9,0.82012]
[1725933976905,0.79345,2341.3,2341.0,0.42709]
[1725933977115,0.42705,2341.3,2341.0,0.81839]
[1725933979519,0.42705,2341.3,2341.1,0.42708]
[1725933980416,0.42707,2341.2,2341.0,0.81839]
[1725933980613,0.3657,2341.4,2341.0,0.81839]
[1725933980614,0.79274,2341.4,2341.0,0.3913]
[1725933980819,10.77389037,2341.3,2341.2,0.42706]
[1725933981520,0.3657,2341.4,2341.3,0.42704]
[1725933982116,0.3657,2341.4,2341.2,0.42705]
[1725933982621,0.3657,2341.4,2341.3,0.3942]
[1725933982819,0.79273,2341.4,2341.3,0.3942]
[1725933983120,2.67,2341.7,2341.3,0.3942]
[1725933983320,0.42701,2341.5,2341.3,0.82124]
[1725933983523,11.34629764,2341.5,2341.3,0.82124]
[1725933983719,0.42701,2341.5,2341.3,0.82124]
[1725933984512,1.37958241,2341.8,2341.4,6.9412]
[1725933984513,0.099,2341.8,2341.4,6.9412]
[1725933984718,1.18245,2341.9,2341.6,2.67]
[1725933984719,0.37,2341.9,2341.6,2.67]
[1725933984918,0.37,2341.9,2341.7,0.82116]
[1725933985420,0.37,2341.9,2341.7,0.3942]
[1725933985623,0.37,2341.9,2341.7,0.82117]
[1725933986421,0.7597,2342.2,2341.8,0.42695]
[1725933986618,1.1548,2342.2,2341.8,0.42695]
[1725933986819,10.51561546,2342.1,2341.7,0.82116]
[1725933987020,1.58169,2342.2,2341.7,0.82116]
[1725933987327,1.58169,2342.2,2341.7,0.3942]
[1725933987627,0.4269,2342.1,2341.7,0.3942]
[1725933987820,1.58169,2342.2,2341.7,0.82117]
[1725933989123,0.42691,2342.1,2341.7,0.3942]
[1725933989322,3.0651,2342.2,2341.7,0.82117]
[1725933989524,0.3951,2342.2,2341.8,0.42694]
[1725933989825,0.3951,2342.2,2341.9,0.42693]
[1725933990233,0.3951,2342.2,2342.0,0.3923]
[1725933990722,0.3951,2342.2,2342.0,0.7898]
[1725933991432,0.3951,2342.2,2342.0,1.21672]
[1725933991631,0.3951,2342.2,2342.0,0.7898]
[1725933991828,0.3951,2342.2,2342.0,0.3923]
[1725933991829,0.82199,2342.2,2342.0,0.3923]
[1725933995423,7.3347,2342.2,2341.7,0.83046]
[1725933995626,0.42693,2342.0,2341.7,0.83047]
[1725933995935,0.42691,2342.1,2341.7,0.83047]
[1725933996133,0.3762,2341.9,2341.7,0.83047]
[1725933996822,0.80314,2341.9,2341.6,0.80298]
[1725933997131,0.393,2341.8,2341.6,0.80299]
[1725933997434,0.393,2341.8,2341.7,0.42697]
[1725933997728,0.393,2341.8,2341.6,0.80298]
[1725933997936,0.393,2341.8,2341.6,0.376]
[1725933998122,0.393,2341.8,2341.4,0.83082]
[1725933998123,0.42699,2341.7,2341.4,0.83082]
[1725933998324,0.42698,2341.7,2341.4,0.83082]
[1725933998632,0.4003,2341.6,2341.4,0.83082]
[1725933999023,0.82729,2341.6,2341.4,0.83082]
[1725933999223,0.4003,2341.6,2341.4,0.83082]
[1725933999424,0.42701,2341.5,2341.4,0.4038]
[1725933999731,10.5986511,2341.5,2341.3,0.80173]
[1725934000131,10.5986511,2341.5,2341.4,0.42703]
[1725934000430,10.5986511,2341.5,2341.3,0.80173]
[1725934000731,10.5986511,2341.5,2341.4,0.42703]
[1725934004036,10.5986511,2341.5,2341.3,0.3747]
[1725934004434,10.5986511,2341.5,2341.4,0.42703]
[1725934005326,0.52595,2341.9,2341.4,2.67]
[1725934005526,0.42697,2341.8,2341.5,0.42699]
[1725934005727,4.53752,2342.0,2341.4,0.42702]
[1725934005933,0.3996,2341.7,2341.3,0.3747]
[1725934006141,0.3996,2341.7,2341.4,0.42702]
[1725934006142,0.8273,2341.6,2341.4,0.42702]
[1725934006432,0.82729,2341.6,2341.4,0.42702]
[1725934007123,5.33793,2341.5,2341.2,2.67]
[1725934007329,1.06773,2341.1,2340.4,4.082]
[1725934007532,0.42713,2340.9,2340.6,0.42716]
[1725934007730,12.1220428,2341.0,2340.7,0.42714]
[1725934007935,1.1961,2341.0,2340.7,0.42714]
[1725934008134,1.6232,2341.0,2340.7,0.42714]
[1725934008334,10.4988428,2340.9,2340.7,0.42714]
[1725934008532,10.9259628,2340.9,2340.7,0.42714]
[1725934008935,10.9259628,2340.9,2340.6,0.42716]
[1725934010237,10.4988428,2340.9,2340.7,0.42715]
[1725934011342,10.9259628,2340.9,2340.7,0.42715]
[1725934011546,10.9259628,2340.9,2340.6,0.42716]
[1725934012444,10.9259628,2340.9,2340.7,0.42715]
[1725934012648,10.4988428,2340.9,2340.8,0.42714]
[1725934012838,1.1961,2341.0,2340.8,0.42714]
[1725934013235,1.1961,2341.0,2340.9,0.369]
[1725934013549,0.4006,2341.0,2340.9,0.79612]
[1725934013733,0.4006,2341.0,2340.9,0.369]
[1725934013941,0.4006,2341.0,2340.9,0.79612]
[1725934014438,0.42708,2341.2,2340.9,0.369]
[1725934014639,0.81288,2341.2,2340.9,0.7961]
[1725934014836,11.54093486,2341.2,2340.9,0.7961]
[1725934015037,0.81288,2341.2,2340.9,0.7961]
[1725934015243,0.81288,2341.2,2341.0,0.4271]
[1725934015440,0.42708,2341.1,2340.9,0.7961]
[1725934015652,0.81287,2341.2,2341.0,0.4271]
[1725934015945,0.81287,2341.2,2341.0,0.8287]
[1725934016345,0.42708,2341.1,2341.0,0.8287]
[1725934016540,0.3858,2341.2,2341.0,0.8287]
[1725934017149,0.42708,2341.1,2341.0,0.4016]
[1725934018653,0.81287,2341.2,2341.0,0.82868]
[1725934018853,0.81287,2341.2,2341.0,1.22808]
[1725934020046,1.0676,2341.4,2341.2,0.42705]
[1725934020047,0.42703,2341.4,2341.2,0.42705]
[1725934020252,0.80911,2341.5,2341.3,0.81474]
[1725934020550,2.98255522,2341.7,2341.4,0.42703]
[1725934020551,0.42699,2341.7,2341.4,0.42703]
[1725934020753,0.80909,2341.7,2341.4,0.82643]
[1725934021055,11.27953153,2341.6,2341.5,0.3905]
[1725934021659,10.85254153,2341.6,2341.5,0.81751]
[1725934021954,0.80907,2341.7,2341.5,0.3905]
[1725934022460,0.3821,2341.7,2341.5,0.81751]
[1725934022751,0.3821,2341.7,2341.5,0.3905]
[1725934022752,0.80907,2341.7,2341.5,0.3905]
[1725934023146,0.3821,2341.7,2341.5,0.81751]
[1725934023345,0.3821,2341.7,2341.5,0.8175]
[1725934024655,0.3821,2341.7,2341.5,0.3905]
[1725934024656,0.80908,2341.7,2341.5,0.3905]
[1725934025651,3.09695,2341.9,2341.6,0.42699]
[1725934025852,0.80914,2341.9,2341.7,0.3693]
[1725934026046,0.80914,2341.9,2341.5,0.3905]
[1725934026047,0.3822,2341.9,2341.5,0.3905]
[1725934026255,3.0522,2341.9,2341.5,0.7598]
[1725934026558,3.0522,2341.9,2341.5,1.1868]
[1725934026755,3.0522,2341.9,2341.7,0.42696]
[1725934026756,0.80914,2341.9,2341.7,0.42696]
[1725934027348,0.80914,2341.9,2341.6,0.42698]
[1725934027550,0.80914,2341.9,2341.5,0.7598]
[1725934027747,0.4269,2342.1,2341.6,2.67]
[1725934027946,0.4269,2342.1,2341.8,0.42695]
[1725934027947,0.42691,2342.1,2341.8,0.42695]
[1725934028250,0.42691,2342.1,2341.9,0.3665]
[1725934028457,0.42691,2342.1,2341.9,0.7666]
[1725934028957,0.42692,2342.0,2341.9,0.7666]
[1725934029254,0.42692,2342.0,2341.9,0.4001]
[1725934031862,0.80029,2342.2,2341.9,0.82703]
[1725934032063,0.80029,2342.2,2342.0,0.3755]
[1725934032360,0.80029,2342.2,2342.0,0.80242]
[1725934032554,0.42687,2342.3,2342.0,0.3755]
[1725934032749,0.42687,2342.3,2342.1,0.3898]
[1725934033366,0.42688,2342.2,2342.1,0.3898]
[1725934033570,0.42688,2342.2,2342.0,0.80241]
[1725934034866,0.394,2342.4,2342.0,0.3755]
[1725934035167,0.394,2342.4,2342.1,0.42689]
[1725934035168,0.82086,2342.4,2342.1,0.42689]
[1725934035360,0.42686,2342.3,2342.1,0.42689]
[1725934035554,0.42688,2342.2,2342.0,0.80241]
[1725934036360,0.42687,2342.3,2342.0,0.80241]
[1725934037253,0.42688,2342.2,2342.0,0.80241]
[1725934037764,0.394,2342.4,2342.0,0.80241]
[1725934037958,0.42687,2342.3,2342.1,0.4269]
[1725934038159,0.82086,2342.4,2342.1,0.4269]
[1725934038370,0.42686,2342.3,2342.2,0.3745]
[1725934038564,0.394,2342.4,2342.2,0.80138]
[1725934038565,0.82086,2342.4,2342.2,0.80138]
[1725934039564,0.82086,2342.4,2342.2,0.3745]
[1725934039762,0.82086,2342.4,2342.2,0.80138]
[1725934040267,0.42686,2342.3,2342.2,0.3745]
[1725934040460,0.82086,2342.4,2342.2,0.3745]
[1725934041062,0.42686,2342.3,2342.2,0.3745]
[1725934044861,0.82085,2342.4,2342.2,0.80138]
[1725934045570,0.82085,2342.4,2342.2,0.80137]
[1725934045865,0.82085,2342.4,2342.3,0.42686]
[1725934045866,0.394,2342.4,2342.3,0.42686]
[1725934046072,0.82084,2342.4,2342.2,0.80137]
[1725934046567,0.82084,2342.4,2342.3,0.42686]
[1725934046568,0.394,2342.4,2342.3,0.42686]
[1725934046767,0.394,2342.4,2342.2,0.3745]
[1725934046966,0.82084,2342.4,2342.2,0.80137]
[1725934047165,0.42684,2342.4,2342.2,0.80137]
[1725934047467,0.42684,2342.5,2342.3,0.79166]
[1725934047666,0.42684,2342.5,2342.4,0.3952]
[1725934048073,10.89911528,2342.6,2342.4,3.0652]
[1725934048264,0.4004,2342.7,2342.5,0.42682]
[1725934048265,0.8272,2342.7,2342.5,0.42682]
[1725934048461,0.42681,2342.6,2342.5,0.3837]
[1725934048664,0.42681,2342.6,2342.5,41.1837]
[1725934049069,0.42681,2342.6,2342.5,40.8]
[1725934049278,0.42681,2342.6,2342.4,0.3952]
[1725934049566,0.4004,2342.7,2342.4,0.3952]
[1725934049773,0.42684,2342.5,2342.4,40.8]
[1725934051373,0.42684,2342.5,2342.3,0.80835]
[1725934051559,0.4026,2342.4,2342.3,0.80835]
[1725934051964,0.42682,2342.6,2342.4,0.42683]
[1725934052270,0.42682,2342.6,2342.5,0.3994]
[1725934053366,0.3821,2342.7,2342.5,0.3994]
[1725934053766,0.3821,2342.7,2342.6,0.3726]
[1725934053967,0.80889,2342.7,2342.6,0.3726]
[1725934054270,0.3821,2342.7,2342.6,0.3726]
[1725934054473,0.80889,2342.7,2342.6,0.3726]
[1725934054677,0.80889,2342.7,2342.5,0.82622]
[1725934054877,0.42682,2342.6,2342.4,0.42683]
[1725934055070,0.42682,2342.6,2342.4,0.79123]
[1725934055377,0.42683,2342.5,2342.4,0.3644]
[1725934055676,0.42682,2342.6,2342.4,0.79124]
[1725934056071,0.42683,2342.5,2342.4,0.3644]
[1725934056566,0.42685,2342.4,2342.2,0.42686]
[1725934056874,1.1641,2342.4,2342.3,0.42686]
[1725934057070,1.59094,2342.4,2342.2,0.79127]
[1725934057572,0.42686,2342.3,2342.2,0.3644]
[1725934057779,0.42686,2342.3,2342.1,0.82629]
[1725934058072,1.59096,2342.4,2342.2,0.42688]
[1725934058276,1.59096,2342.4,2342.2,0.79708]
[1725934058978,1.1641,2342.4,2342.3,0.42686]
[1725934059172,1.59095,2342.4,2342.2,0.79707]
[1725934060375,1.1641,2342.4,2342.2,0.79707]
[1725934060677,1.59095,2342.4,2342.2,1.17947]
[1725934061795,0.3656,2342.4,2342.2,0.7526]
[1725934062086,0.79244,2342.4,2342.2,1.17947]
[1725934062287,0.79244,2342.4,2342.2,0.79707]
[1725934063187,0.42686,2342.3,2342.2,0.3702]
[1725934063385,0.3848,2342.3,2342.2,0.79707]
[1725934064191,0.3848,2342.3,2342.1,0.82629]
[1725934064398,0.3848,2342.3,2342.2,0.42688]
[1725934064592,0.42689,2342.2,2342.0,0.42691]
[1725934064896,0.4269,2342.1,2341.9,0.81022]
[1725934065083,0.809,2342.1,2341.9,0.81022]
[1725934066396,0.3821,2342.1,2342.0,0.42692]
[1725934067888,0.809,2342.1,2342.0,0.42692]
[1725934068284,0.3821,2342.1,2342.0,0.42692]
[1725934068888,0.42689,2342.2,2342.0,0.42692]
[1725934069084,0.79499,2342.2,2342.0,3.09692]
[1725934070300,1.16604,2342.6,2342.0,2.67]
[1725934070493,1.1835,2342.5,2342.1,0.7785]
[1725934070799,0.42685,2342.4,2342.2,3.09687]
[1725934070991,0.42685,2342.4,2342.2,3.49267]
[1725934071497,12.54455308,2342.5,2342.3,0.42685]
[1725934071693,12.11772308,2342.5,2342.2,3.0658]
[1725934071897,10.93422308,2342.5,2342.2,3.0658]
[1725934072094,10.93422308,2342.5,2342.3,0.42685]
[1725934072297,11.36105308,2342.5,2342.3,0.42685]
[1725934072495,10.93422308,2342.5,2342.2,3.0658]
[1725934072799,10.93422308,2342.5,2342.3,0.42686]
[1725934074696,11.36105308,2342.5,2342.3,0.42686]
[1725934074902,10.93422308,2342.5,2342.3,0.42686]
[1725934075195,10.93422308,2342.5,2342.3,0.42685]
[1725934076890,10.93422308,2342.5,2342.4,0.42684]
[1725934077087,10.93422308,2342.5,2342.3,0.42685]
[1725934077288,11.36105308,2342.5,2342.3,0.42685]
[1725934077897,0.42683,2342.5,2342.3,0.42685]
[1725934078095,0.42683,2342.5,2342.3,1.65685]
[1725934078796,4.33193279,2342.5,2342.3,1.65685]
[1725934080995,3.90510279,2342.5,2342.4,0.42684]
[1725934081201,0.42683,2342.5,2342.4,0.42684]
[1725934081400,4.33193279,2342.5,2342.3,1.65685]
[1725934083702,4.33193279,2342.5,2342.4,0.42684]
[1725934084005,4.33193279,2342.5,2342.3,1.65685]
[1725934084195,0.42683,2342.5,2342.3,1.65685]
[1725934084799,0.42683,2342.5,2342.4,0.42684]
[1725934085803,0.42683,2342.5,2342.3,1.65685]
[1725934086911,4.2688,2342.4,2342.1,1.11186551]
[1725934087103,0.3804,2342.3,2342.1,0.42689]
[1725934087299,0.3804,2342.3,2342.0,1.11186551]
[1725934087300,0.4269,2342.2,2342.0,1.11186551]
[1725934087512,0.4269,2342.2,2342.1,0.4269]
[1725934087709,0.3804,2342.3,2342.2,0.42688]
[1725934088014,0.3804,2342.3,2342.2,1.65688]
[1725934088203,0.80726,2342.3,2342.2,1.65688]
[1725934088510,0.42686,2342.3,2342.2,1.23]
[1725934088710,0.81956,2342.3,2342.2,1.23]
[1725934089007,5.08916,2342.3,2342.2,1.65688]
[1725934089315,0.81956,2342.3,2342.2,1.65688]
[1725934089710,0.81956,2342.3,2342.2,2.03558]
[1725934090511,0.81956,2342.3,2342.2,0.3787]
[1725934091199,4.72466279,2342.3,2342.2,0.3787]
[1725934091605,4.72466279,2342.3,2342.2,0.80558]
[1725934092603,3.90510279,2342.3,2342.2,0.80558]
[1725934092815,4.70855279,2342.4,2342.2,0.3787]
[1725934093115,4.70855279,2342.4,2342.3,1.23]
[1725934095621,0.80345,2342.4,2342.3,1.23]
[1725934096010,4.71110308,2342.4,2342.3,1.23]
[1725934098024,0.80345,2342.4,2342.3,1.23]
[1725934098217,0.80345,2342.4,2342.2,0.80557]
[1725934098410,4.97471468,2342.3,2341.8,4.082]
[1725934098618,4.97478468,2342.1,2341.7,0.4021]
[1725934098918,0.42695,2341.9,2341.7,0.82906]
[1725934099117,4.69323468,2342.0,2341.7,1.94092551]
[1725934099320,1.85302,2342.0,2341.7,0.42697]
[1725934099711,0.42695,2341.8,2341.7,0.42697]
[1725934100218,0.42695,2341.8,2341.6,2.34186551]
[1725934100517,1.85302,2342.0,2341.6,1.23]
[1725934100724,0.42696,2341.8,2341.6,1.23]
[1725934100916,0.42696,2341.8,2341.6,1.65698]
[1725934101112,0.42699,2341.6,2341.5,1.11186551]
[1725934101313,10.5979449,2341.7,2341.5,0.42701]
[1725934101509,0.3952,2341.6,2341.5,0.42701]
[1725934101714,0.42701,2341.5,2341.4,0.42702]
[1725934102018,0.82121,2341.5,2341.4,0.42702]
[1725934102618,0.3942,2341.5,2341.4,0.42703]
[1725934104425,0.82219,2341.6,2341.4,0.42703]
[1725934105221,0.7532,2341.7,2341.3,1.23]
[1725934105222,0.3829,2341.7,2341.6,0.42699]
[1725934105529,0.3829,2341.7,2341.6,1.65699]
[1725934108324,0.80988,2341.7,2341.5,0.427]
[1725934108518,0.80988,2341.7,2341.3,1.23]
[1725934108519,0.7399,2341.6,2341.3,1.23]
[1725934108717,0.7399,2341.6,2341.5,0.42701]
[1725934108918,0.3648,2341.6,2341.5,1.65701]
[1725934109217,0.80988,2341.7,2341.5,1.65701]
[1725934110126,0.80988,2341.7,2341.6,0.4019]
[1725934111119,0.42699,2341.6,2341.5,1.23]
[1725934112224,0.42699,2341.6,2341.5,1.65701]
[1725934113227,0.42699,2341.6,2341.5,1.23]
[1725934113914,0.42703,2341.4,2341.3,2.05893]
[1725934114119,0.42702,2341.5,2341.3,2.05893]
[1725934114324,0.3898,2341.4,2341.3,2.05893]
[1725934115029,0.3898,2341.4,2341.2,0.81405]
[1725934115030,0.81684,2341.4,2341.2,0.81405]
[1725934115230,0.42701,2341.5,2341.4,0.42703]
[1725934115729,0.42701,2341.5,2341.4,0.81773]
[1725934116329,0.7727,2341.7,2341.5,0.42701]
[1725934116330,0.427,2341.6,2341.5,0.42701]
[1725934116532,0.7727,2341.7,2341.4,0.81771]
[1725934116729,0.42701,2341.5,2341.4,2.04772]
[1725934116924,0.3829,2341.7,2341.5,0.427]
[1725934117437,0.80987,2341.7,2341.6,0.3771]
[1725934117629,0.80987,2341.7,2341.6,0.7688]
[1725934122042,0.42701,2341.5,2341.4,0.42701]
[1725934122535,0.427,2341.6,2341.5,0.42701]
[1725934123139,0.42701,2341.5,2341.4,0.42701]
[1725934124239,0.427,2341.6,2341.5,0.42701]
[1725934128837,0.42701,2341.5,2341.4,0.42701]
[1725934130532,1.0675,2341.6,2341.2,1.1658]
[1725934130732,1.0675,2341.6,2341.3,0.42704]
[1725934130733,0.82894,2341.4,2341.3,0.42704]
[1725934131131,0.4019,2341.4,2341.2,1.1658]
[1725934131338,0.42704,2341.3,2341.2,1.59285]
[1725934131734,0.42704,2341.3,2341.2,1.20095]
[1725934132132,0.42704,2341.3,2341.2,1.20096]
[1725934132340,0.42704,2341.3,2341.2,0.7739]
[1725934133230,0.42704,2341.3,2341.2,1.20096]
[1725934133641,0.42704,2341.3,2341.2,0.7739]
[1725934136640,0.42704,2341.3,2341.2,1.20096]
[1725934140047,0.42704,2341.4,2341.3,0.42703]
[1725934140242,0.42704,2341.4,2341.3,1.65703]
[1725934140456,11.22676426,2341.4,2341.3,0.42703]
[1725934140657,0.42704,2341.3,2341.2,1.20095]
[1725934141161,0.42704,2341.3,2341.2,0.7739]
[1725934141354,0.42704,2341.3,2341.0,1.11186551]
[1725934141355,11.5012,2341.3,2341.0,1.11186551]
[1725934141555,0.42714,2340.8,2340.6,1.11186551]
[1725934141766,0.42715,2340.8,2340.6,0.42717]
[1725934141954,0.42713,2340.9,2340.7,0.42715]
[1725934142156,0.42714,2340.8,2340.6,0.42716]
[1725934142554,0.42712,2340.9,2340.7,0.42714]
[1725934142761,0.42712,2340.9,2340.8,0.3726]
[1725934144454,0.42711,2341.0,2340.8,0.3726]
[1725934144670,0.42711,2341.0,2340.8,0.79973]
[1725934144859,11.19428627,2341.0,2340.8,0.7473]
[1725934145060,11.19428627,2341.0,2340.8,1.17443]
[1725934145364,0.42711,2341.0,2340.8,0.7473]
[1725934145668,10.92303096,2340.9,2340.8,0.7473]
[1725934146164,0.42711,2341.0,2340.8,1.17444]
[1725934146366,0.42711,2341.0,2340.9,0.3888]
[1725934146666,10.71164174,2341.0,2340.9,0.3888]
[1725934146866,11.13874174,2341.0,2340.9,0.3888]
[1725934147058,0.4271,2341.0,2340.9,0.3888]
[1725934147261,11.06521377,2341.0,2340.9,0.3888]
[1725934148665,0.4271,2341.0,2340.9,1.6188]
[1725934148863,0.4271,2341.1,2340.9,2.04592]
[1725934149066,0.4271,2341.0,2340.9,1.6188]
[1725934149267,0.7752,2341.2,2341.0,0.42709]
[1725934149461,0.3723,2341.2,2341.0,1.23]
[1725934149669,0.42708,2341.1,2341.0,1.23]
[1725934149864,0.3723,2341.2,2341.0,0.4271]
[1725934149865,0.79938,2341.2,2341.0,0.4271]
[1725934150870,0.42708,2341.1,2341.0,0.4271]
[1725934151462,0.42708,2341.1,2340.9,2.0459]
[1725934153472,0.4271,2341.0,2340.9,2.0459]
[1725934153661,0.4271,2341.0,2340.9,0.8159]
[1725934158261,0.4271,2341.0,2340.9,0.3888]
[1725934158462,0.42715,2340.7,2340.6,1.18626]
[1725934158663,0.42715,2340.8,2340.7,0.42715]
[1725934158870,0.42715,2340.7,2340.6,1.87096551]
[1725934159668,0.42715,2340.7,2340.6,0.7591]
[1725934159869,0.42715,2340.7,2340.6,1.87096551]
[1725934160671,0.42715,2340.7,2340.6,0.7591]
[1725934161772,0.42715,2340.7,2340.6,1.18627]
[1725934162271,0.42715,2340.7,2340.6,0.7591]
[1725934162477,0.42715,2340.7,2340.6,0.3782]
[1725934164169,0.42715,2340.7,2340.6,0.80537]
[1725934164364,0.42715,2340.7,2340.6,2.28413551]
[1725934164571,0.42715,2340.7,2340.6,1.17227]
[1725934166375,0.42715,2340.7,2340.6,2.28413551]
[1725934166576,0.42715,2340.7,2340.6,1.17227]
[1725934168871,0.42715,2340.8,2340.7,0.42715]
[1725934169772,0.42715,2340.8,2340.6,1.17226]